Cogmind - Beta 15 *** ADVENTURER MODE // 2025.05.25 @ 22:47:17 Player: Jack Result: Destroyed by Y-45 Defender with Heavy Assault Rifle Performance ------------- Evolutions (2) 1000 Regions Visited (5) 1000 Robots Destroyed (10) 50 Value Destroyed (252) 252 Prototype IDs (23) 460 Alien Tech Used (0) 0 Bonus (0) 0 TOTAL SCORE: 2762 Bonus ------- None Cogmind --------- Core Integrity 0/550 Matter 224/300 Energy 100/100 System Corruption 0% Temperature Cool (27) Movement Core (50) Location -8/Materials Parts ------- > --- POWER (1) -------- (None) > --- PROPULSION (2) --- (None) > --- UTILITY (6) ------ Visual Processing Unit > --- WEAPON (2) ------- Medium Laser > --- INVENTORY (5) ---- Improved Sensor Array Mini Grenade Launcher Katana Katana Peak State ------------ > --- POWER ------------ (None) > --- PROPULSION ------- Cesium-ion Thruster > --- UTILITY ---------- Visual Processing Unit Improved Sensor Array Improved Signal Interpreter > --- WEAPON ----------- Katana > --- INVENTORY -------- Medium Laser Mini Grenade Launcher Katana [Rating: 14] Favorites ----------- Power None Propulsion Cesium-ion Thruster Flight Unit Cesium-ion Thruster Utility Visual Processing Unit Device Improved Sensor Array Processor Visual Processing Unit Hackware Hacking Suite Weapon Light Assault Rifle Energy Gun Medium Laser Energy Cannon Latent Energy Streamer Ballistic Gun Light Assault Rifle Launcher Mini Grenade Launcher Slashing Weapon Katana Build | -11 -10 -10 -10 -9 -8 ------- Run | Yrd Mat Min Exi Min Mat Slots Evolved 4 | . . . . . 4 Power . | . . . . . . Propulsion . | . . . . . . Utility 4 | . . . . . 4 Weapon . | . . . . . . Parts Attached 12 | 2 1 . 1 1 7 Power . | . . . . . . Engine . | . . . . . . Core . | . . . . . . Reactor . | . . . . . . Propulsion 1 | . . . . . 1 Treads . | . . . . . . Leg . | . . . . . . Wheel . | . . . . . . Hover . | . . . . . . Flight 1 | . . . . . 1 Utility 4 | . . . . . 4 Device 1 | . . . . . 1 Storage . | . . . . . . Processor 2 | . . . . . 2 Hackware 1 | . . . . . 1 Protection . | . . . . . . Artifact . | . . . . . . Weapon 7 | 2 1 . 1 1 2 Energy Gun 1 | 1 . . . . . Energy Cannon 1 | . . . 1 . . Ballistic Gun 3 | 1 1 . . 1 . Ballistic Cannon . | . . . . . . Launcher 1 | . . . . . 1 Special Weapon . | . . . . . . Impact Weapon . | . . . . . . Slashing Weapon 1 | . . . . . 1 Piercing Weapon . | . . . . . . Special Melee Weapon . | . . . . . . Unidentified Prototypes . | . . . . . . Parts Lost 6 | . . . . 1 5 Power . | . . . . . . Propulsion 1 | . . . . . 1 Utility 2 | . . . . . 2 Weapon 3 | . . . . 1 2 Highest Loss Streak 3 | . . . . 1 3 To Critical Strikes . | . . . . . . Average Backups 1 | . 1 1 1 2 2 Power . | . . . . . . Propulsion . | . . . . . . Utility . | . . . . . . Weapon 1 | . 1 1 1 2 2 Tool/Special . | . . . . . . Unused Backups 1 | . . . . . 1 Power . | . . . . . . Propulsion . | . . . . . . Utility . | . . . . . . Weapon 1 | . . . . . 1 Tool/Special . | . . . . . . Average Slot Usage (%) 22 | . 28 28 24 15 19 Processor 1 | . . . . . 5 Energy Gun 6 | . 14 14 9 . . Ballistic Gun 13 | . 14 14 14 15 9 Peak Build Rating 14 | 2 2 2 11 5 14 Average Rating 2 | 1 2 2 2 2 4 On Entrance 1 | . 2 2 2 1 2 Naked Turns 8 | . . . . 1 7 Heaviest Build 11 | 4 4 3 11 4 3 Greatest Support 5 | 3 3 3 3 3 5 Greatest Overweight (x) 3 | 1 1 . 3 1 . Average Overweight (x) . | . . . . . . Largest Inventory Capacity 5 | 5 5 5 5 5 5 Average Capacity 5 | 5 5 5 5 5 5 Most Carried 5 | 1 1 1 3 3 5 Average Carried 1 | . 1 1 1 2 2 Final Capacity 5 | 5 5 5 5 5 5 Final Carried 4 | 1 1 1 2 1 4 Class Distribution -------------------- 57% | Mutant 36% | Commander-Mutant 6% | Scout Dominant Class ---------------- Mutant | -10/Materials Mutant | -10/Mines Commander-Mutant | -10/Exiles Commander-Mutant | -9/Mines Mutant | -8/Materials Resources | -11 -10 -10 -10 -9 -8 ----------- Run | Yrd Mat Min Exi Min Mat Matter Collected 287 | 123 . 90 . 54 20 Remotely . | . . . . . . Salvage Created 239 | . . 90 . . 149 Parts 15 | . . 3 . . 12 Haulers Intercepted . | . . . . . . Recyclers Shooed . | . . . . . . Parts Field Recycled . | . . . . . . Retrieved Matter . | . . . . . . Parts Self-Destructed . | . . . . . . Prevented . | . . . . . . Kills | -11 -10 -10 -10 -9 -8 ------- Run | Yrd Mat Min Exi Min Mat Combat Hostiles Destroyed 9 | . . 2 . . 7 Guns 4 | . . 2 . . 2 AOE 5 | . . . . . 5 Classes Destroyed 4 | . . 1 . . 3 Worker 1 | . . . . . 1 Swarmer 5 | . . . . . 5 Grunt 2 | . . 2 . . . Sentry 2 | . . . . . 2 Best Kill Streak 5 | . . 2 . . 5 Combat Bots Only 5 | . . 2 . . 5 Max Kills in Single Turn 5 | . . 1 . . 5 Gunslinging . | . . . . . . Exploded 5 | . . . . . 5 Melee . | . . . . . . Uniques/NPCs Destroyed . | . . . . . . Combat | -11 -10 -10 -10 -9 -8 -------- Run | Yrd Mat Min Exi Min Mat Hostile Shots Fired 148 | . 1 7 . 26 114 Missed 56 | . 1 2 . 5 48 Hits 92 | . . 5 . 21 66 Melee 7 | . . . . 7 . Projectile 85 | . . 5 . 14 66 Critical Strikes 4 | . . . . . 4 Damage Taken 1186 | . . 59 . 336 791 Core 758 | . . 20 . 177 561 Absorbed by Shields . | . . . . . . Ignored by Resistances 331 | . . 17 . 92 222 Core Remaining (%) 60 | 100 . . . 21 . Volleys Fired 13 | . . 6 . . 7 Largest 2 | . . 2 . . 2 Hottest 70 | . . 70 . . 40 Shots Fired 24 | . . 12 . . 12 Gun 22 | . . 12 . . 10 Cannon . | . . . . . . Launcher 2 | . . . . . 2 Special . | . . . . . . Kinetic 16 | . . 6 . . 10 Thermal 6 | . . 6 . . . Explosive 2 | . . . . . 2 Electromagnetic . | . . . . . . Robot Hit Streak 6 | . . 6 . . 6 Robot Miss Streak 1 | . . 1 . . 1 Penetration Max . | . . . . . . Secondary Targets . | . . . . . . Shots Hit Robots 18 | . . 9 . . 9 Core Hits 17 | . . 6 . . 11 Critical Kills . | . . . . . . Critical Parts Destroyed . | . . . . . . Critical Strikes . | . . . . . . Melee Attacks 4 | . . . . . 4 Impact . | . . . . . . Slashing 4 | . . . . . 4 Piercing . | . . . . . . Sneak Attacks . | . . . . . . Combat Hostiles . | . . . . . . Follow-up Attacks . | . . . . . . Damage Inflicted 502 | . . 89 . 6 407 Guns 172 | . . 89 . . 83 Cannons . | . . . . . . Explosions 312 | . . . . . 312 Melee . | . . . . . . Ramming 18 | . . . . 6 12 Kinetic 123 | . . 40 . . 83 Thermal 49 | . . 49 . . . Explosive 312 | . . . . . 312 Electromagnetic . | . . . . . . Impact . | . . . . . . Slashing . | . . . . . . Piercing . | . . . . . . Highest Corruption . | . . . . . . Average Corruption . | . . . . . . Corruption Purged . | . . . . . . Corruption Blocked . | . . . . . . Overload Shots . | . . . . . . Overflow Damage 58 | . . . . . 58 Projectiles . | . . . . . . Explosions 58 | . . . . . 58 Melee . | . . . . . . Knockbacks . | . . . . . . Impact . | . . . . . . Kinetic . | . . . . . . Secondary . | . . . . . . Self-Inflicted Damage 116 | . . . . 3 113 Shots 2 | . . . . . 2 Rammed 2 | . . . . 1 1 Targets Rammed 2 | . . . . 1 1 Kicked . | . . . . . . Crushed . | . . . . . . Highest Temperature 62 | . . 62 . . . Average Temperature 31 | . . 31 . . . Received Heat Transfer 393 | . . 42 . . 351 Siege Activations . | . . . . . . Martial Activations . | . . . . . . Shielding Activations . | . . . . . . Robots Disrupted . | . . . . . . Combat Hostiles . | . . . . . . Robots Corrupted . | . . . . . . Combat Hostiles . | . . . . . . Parts Fried . | . . . . . . Impact Corruptions . | . . . . . . Robots Melted . | . . . . . . Combat Hostiles . | . . . . . . Parts Melted . | . . . . . . Heat Transferred 148 | . . 148 . . . Parts Sabotaged . | . . . . . . Parts Stolen . | . . . . . . Parts Stripped . | . . . . . . Power Chain Reactions . | . . . . . . Alert | -11 -10 -10 -10 -9 -8 ------- Run | Yrd Mat Min Exi Min Mat Maximum Alert Level 1 | . . . . . 1 Low Security (%) 95 | 100 100 100 . 100 88 Level 1 4 | . . . . . 11 Level 2 . | . . . . . . Level 3 . | . . . . . . Level 4 . | . . . . . . Level 5 . | . . . . . . High Security . | . . . . . . Max Security . | . . . . . . Peak Influence 354 | . 15 50 . 7 354 Initial . | . . . . . . Average 47 | . 3 24 . . 102 Influence Increases 576 | . 15 50 . 7 504 Destroy 0b10 Robot/C 180 | . . 40 . . 140 Destroy 0b10 Robot/NC 5 | . . . . . 5 Destroy Leader 40 | . . 10 . . 30 Successful Hack 14 | . . . . 7 7 Disable Machine 27 | . . . . . 27 Destroy Structure 40 | . . . . . 40 Partial Spotted 60 | . . . . . 60 Lose Combat Pursuer 210 | . 15 . . . 195 Influence Decreases 232 | . 15 40 10 7 160 Entered New Map 10 | . . . 10 . . Time Decay 172 | . 15 40 . 7 110 Lost Part 50 | . . . . . 50 Squads Dispatched 3 | . . . . . 3 Investigation 2 | . . . . . 2 Extermination . | . . . . . . Reinforcement 1 | . . . . . 1 Assault . | . . . . . . Garrison . | . . . . . . Intercept . | . . . . . . Searches Triggered . | . . . . . . Construction Impeded . | . . . . . . Haulers Reinforced . | . . . . . . Active Scanning Responses . | . . . . . . Cargo Convoy Interrupts . | . . . . . . Stealth | -11 -10 -10 -10 -9 -8 --------- Run | Yrd Mat Min Exi Min Mat Distress Signals 2 | . . . . . 2 Communications Jammed . | . . . . . . Distress Signals . | . . . . . . Times Spotted 44 | . 2 2 . 9 31 Peak Tracking Total 16 | . 1 2 . 7 16 Tactical Retreats 5 | . 1 . . 1 3 Traps | -11 -10 -10 -10 -9 -8 ------- Run | Yrd Mat Min Exi Min Mat Traps Triggered . | . . . . . . Indirectly . | . . . . . . Trap Hack Attempts . | . . . . . . Triggered . | . . . . . . Disarmed . | . . . . . . Reprogrammed . | . . . . . . Reused . | . . . . . . Traps Extracted . | . . . . . . Installed . | . . . . . . Triggered . | . . . . . . Machines | -11 -10 -10 -10 -9 -8 ---------- Run | Yrd Mat Min Exi Min Mat Machines Disabled 3 | . . . . . 3 Max in Single Turn 1 | . . . . . 1 Machines Repaired . | . . . . . . Machines Dismantled . | . . . . . . Machines Sabotaged . | . . . . . . Overloaded Fab Kills . | . . . . . . Hacking | -11 -10 -10 -10 -9 -8 --------- Run | Yrd Mat Min Exi Min Mat Machines Accessed 7 | . 1 . 2 1 3 Terminals 5 | . 1 . . 1 3 Fabricators . | . . . . . . Repair Stations . | . . . . . . Recycling Units . | . . . . . . Scanalyzers . | . . . . . . Garrison Access . | . . . . . . Total Hacks 12 | . 2 . 2 2 6 Successful 5 | . 1 . 2 1 1 Failed 7 | . 1 . . 1 5 Catastrophic 2 | . . . . 1 1 Database Lockouts . | . . . . . . Manual 7 | . . . 1 . 6 Terminals 10 | . 2 . . 2 6 Fabricators . | . . . . . . Repair Stations . | . . . . . . Recycling Units . | . . . . . . Scanalyzers . | . . . . . . Garrison Access . | . . . . . . Terminal Hacks 5 | . 1 . 2 1 1 Record 1 | . . . 1 . . Part Schematic 1 | . . . . . 1 Level Access Points 1 | . . . . 1 . Branch Access Points 1 | . 1 . . . . Proto ID Catalog 1 | . . . 1 . . Fabricator Hacks . | . . . . . . Repair Station Hacks . | . . . . . . Recycling Unit Hacks . | . . . . . . Scanalyzer . | . . . . . . Garrison Access Hacks . | . . . . . . Unauthorized Hacks . | . . . . . . Terminals . | . . . . . . Fabricators . | . . . . . . Repair Stations . | . . . . . . Recycling Units . | . . . . . . Scanalyzers . | . . . . . . Garrison Access . | . . . . . . Data Cores Recovered . | . . . . . . Used . | . . . . . . Hacking Detections 3 | . . . . 1 2 Full Trace Events 3 | . . . . 1 2 Feedback Events . | . . . . . . Feedback Blocked . | . . . . . . Robot Schematics Acquired . | . . . . . . Robots Built . | . . . . . . Authchips . | . . . . . . Time . | . . . . . . Total Robot Build Rating . | . . . . . . Part Schematics Acquired 1 | . . . . . 1 Parts Built . | . . . . . . Authchips . | . . . . . . Time . | . . . . . . Total Part Build Rating . | . . . . . . Parts Repaired . | . . . . . . Time . | . . . . . . Parts Recycled . | . . . . . . Recycled Matter . | . . . . . . Retrieved Matter . | . . . . . . Retrieved Components . | . . . . . . Parts Scanalyzed . | . . . . . . Part Schematics Acquired . | . . . . . . Parts Damaged . | . . . . . . Bothacking | -11 -10 -10 -10 -9 -8 ------------ Run | Yrd Mat Min Exi Min Mat Used RIF Installer . | . . . . . . Robots Hacked . | . . . . . . Non-combat . | . . . . . . Combat . | . . . . . . Robot Hacks Applied . | . . . . . . Relay Couplers Released . | . . . . . . Fabnet Peak Effective % . | . . . . . . Robots Rewired 4 | . . . 4 . . Allies Hacked . | . . . . . . Hacks Repelled . | . . . . . . Allies | -11 -10 -10 -10 -9 -8 -------- Run | Yrd Mat Min Exi Min Mat Total Allies 4 | . . . 4 . . Largest Group 4 | . . . 4 4 . Highest-Rated Group 45 | . . . 45 45 . Highest-Rated Ally 21 | . . . 21 21 . Total Orders . | . . . . . . Ally Attacks 10 | . . . . 10 . Total Damage 80 | . . . . 80 . Kills 2 | . . . . 2 . Allies Corrupted . | . . . . . . Allies Melted . | . . . . . . Intel | -11 -10 -10 -10 -9 -8 ------- Run | Yrd Mat Min Exi Min Mat Active Infowar (turns) 94 | . . . . . 94 Optics 85 | . . . . . 85 Sensors 33 | . . . . . 33 Robot Analysis Total . | . . . . . . Derelict Logs Recovered 2 | . . . . 2 . Drone Launches . | . . . . . . Drone Recoveries . | . . . . . . Exploration | -11 -10 -10 -10 -9 -8 ------------- Run | Yrd Mat Min Exi Min Mat Turns Passed 1215 | 40 93 82 589 144 267 Spaces Moved 1932 | 51 173 126 867 232 483 Core 1798 | 51 173 126 867 232 349 Treads . | . . . . . . Legs . | . . . . . . Wheels . | . . . . . . Hover . | . . . . . . Flight 134 | . . . . . 134 Fastest Speed 35 | 50 50 50 50 50 35 Average Speed 53 | 71 52 50 55 59 45 Slowest Speed 200 | 100 100 50 200 100 50 Overloaded Moves . | . . . . . . Propulsion Burnouts . | . . . . . . Robots Hopped 1 | . . . . . 1 Potential Cave-ins . | . . . . . . Cave-ins Triggered . | . . . . . . Exploration Rate (%) 42 | 3 36 26 92 40 58 Regions Visited 5 Branch Regions 3 Pre-discovered Areas . | . . . . . . Known Exits Taken 2 | . 1 . . 1 . Unknown Exits Taken 3 | 1 . 1 1 . . Scrap Searched . | . . . . . . Spaces Dug 3 | . . . . . 3 Terrain Destroyed 61 | . . . . . 61 Melee 3 | . . . . . 3 Projectile . | . . . . . . AOE 58 | . . . . . 58 Terrain Rammed . | . . . . . . Walls Destroyed . | . . . . . . Machines Disabled . | . . . . . . Actions | -11 -10 -10 -10 -9 -8 --------- Run | Yrd Mat Min Exi Min Mat Total 2076 | 53 173 133 972 236 509 Wait 58 | . . 2 55 . 1 Move 1925 | 50 172 125 866 231 481 Hop 1 | . . . . . 1 Pick Up 6 | 1 . . 2 . 3 Fast Attach 8 | 2 . . . 1 5 Attach 5 | . . . . 2 3 Detach 4 | . . . . 1 3 Swap 2 | . 1 . 1 . . Drop 2 | . . . 2 . . Fire 13 | . . 6 . . 7 Melee 4 | . . . . . 4 Ram 2 | . . . . 1 1 Kick . | . . . . . . Crush . | . . . . . . Escape Stasis . | . . . . . . Rewire 46 | . . . 46 . . Trap . | . . . . . . Miscellaneous . | . . . . . . Route ------- -11/Scrapyard -10/Materials (discovered 2 exits: [*Mat] / *Min) -10/Mines -10/Exiles -9/Mines (discovered 2 exits: *Mat x2) -8/Materials History --------- Turn | Location | Event 5 | -11/Scrapyard | Discovered new exit (range 16) 41 | -11/Scrapyard | Entered Materials 55 | -10/Materials | Identified exit to Mines 117 | -10/Materials | Discovered new exit (range 15) 134 | -10/Materials | Entered Mines 213 | -10/Mines | Deemed a non-threat by the Exiles lab entrance 214 | -10/Mines | Discovered new exit (range 5) 216 | -10/Mines | Entered Exiles 216 | -10/Exiles | Found Exiles lab destroyed 300 | -10/Exiles | Build established: Mutant 471 | -10/Exiles | Discovered new exit (range 12) 530 | -10/Exiles | Opened EX-Vault 534 | -10/Exiles | Found Latent Energy Streamer 762 | -10/Exiles | Build established: Commander-Mutant 805 | -10/Exiles | Entered Mines 805 | -9/Mines | Accompanied by 4 allies 811 | -9/Mines | Learned Materials stockpile data 822 | -9/Mines | A weapon hastily lodged in a ceiling crevice suddenly fell to the ground 827 | -9/Mines | Learned Materials terminal intel 831 | -9/Mines | Assembled infested the area 867 | -9/Mines | Identified exit to Materials 925 | -9/Mines | Core integrity fell below 50% 948 | -9/Mines | Lost 3 allies 949 | -9/Mines | Entered Materials 949 | -8/Materials | Evolved 4 slots: Utility x4 951 | -8/Materials | Loaded intel: 12 terminal locations 1127 | -8/Materials | Lost 3 parts (1u2w) 1181 | -8/Materials | Core integrity fell below 50% 1197 | -8/Materials | Core integrity fell below 20% 1216 | -8/Materials | Destroyed by Y-45 Defender with Heavy Assault Rifle Last Messages --------------- K-01 Serf cleans the Terminal. Drone sends a signal. Slug penetrates Wall. Connecting with Terminal... ALERT: Suspicious activity at Terminal M010. Dispatching Investigation squad. W-25 Informer distress signal alerts nearby ally. Cesium-ion Thruster destroyed. Critical hit (Burn: +37). Slammed into Y-45 Defender. ALERT: Hostiles spotted, dispatching reinforcements to Terminal M005. Connecting with Terminal... Terminal disabled. The unstable cave ceiling collapses. S-10 Pest destroyed. Fusion Modulator explodes. Imp. Signal Interpreter destroyed. Destroyed Imp. Signal Interpreter. W-25 Informer distress signal alerts nearby ally. G-47 Trooper suffers critical hit (Burn). Critical hit (Burn: +37). Map ----- +----------------------------------------------------+ | | | | | | | | | | | | | | | ??????????????????##?##################?????????? | | ???????????#?????? # [ ## # ###???????? | | ???????????# """ ! /# """" #???????? | | ???????????# """ #! """""" "" ##??????? | | ???????????# """ " " # ! """""! #??????? | | ???????????? """ "G"?# "" #??????? | | ?????????????? """ ""??# = "" #??????? | | ??????????????? ???#! "" #??????? | | ??????????????###+##???###+###""" #??????? | | ??????????????# ##### ### " [ #??????? | | ####??????????# #?# "" * #??????? | | #??????????# #?###" ###??????? | | #??????????# ##### #???## #????????? | | #??????????######???## ##????# ####????????? | | #????????????????????# #?????# #???????????? | | #????????????????????# #?????# #???????????? | | #????????????????????# #?????# #???????????? | | #???????????????????## ##???## ##??????????? | | #???????????????????# @ ##### #??????????? | | #???????????????????+ YY #??????????? | | #?????????????????""# w Y * #??????????? | | ####?????????????????T"# ##### #??????????? | | #????????????????????""## ##???#### #??????????? | | #???????????????????????# #???????# #??????????? | | #???????????????????????# +???????# #??????????? | | #???????????????????????# #???????# #??????????? | | #???????????????????????# #???????# #??????????? | | #???????????????????????# #???????# #??????????? | | #???????????????????????# #???????# #??????????? | | ????????????????????????# #???????# #?????!#???? | | ????????????????????????# #??????## #### !!#???? | | ###############+######### ######## !!#???? | | !!#???? | | !!#???? | | """ #####???? | | ??????# """ ################## #???????? | | ??????# """ #????????????????## ##???????? | | ??????# #????????????=????# #????????? | | ??????# +?????????????????# #????????? | | ??"""?# #?????????????????# #????????? | | ??"T"?# #?????????????????# #??????T?? | | ??????# """ #?????????????????# #????????? | | ??????# """"" #?????????????????# #????????? | +----------------------------------------------------+ Best States ------------- Heat Dissipation 31 Energy Generation 5 Energy Capacity 100 Matter Stores 300 Matter Capacity 300 Sight Range 18 Robot Scan Range 15 Terrain Scan Density 10 Resistance: KI 20 Resistance: TH 20 Resistance: EX 20 Resistance: EM 20 Resistance: I 20 Resistance: S 20 Resistance: P 20 Evasion (%) 63 Offensive Hacking 10 Item Schematics ----------------- Hacking Suite | -8/Materials | Hacked Robot Schematics ------------------ None Fabricated ------------ Nothing Repaired ---------- Nothing Alien Tech Used ----------------- None Achievements -------------- None Challenges ------------ None Game ------ Seed TeleporterSapperRailgun Manual? 0 Play Time 00:14:00 Cumulative 201.7 hours Start 2025.05.25 @ 22:36:22 End 2025.05.25 @ 22:47:17 Sessions 1 Manual Loads 0 Difficulty Adventurer Special Mode None Game No. 201 Rogue 18 Adventurer 172 Explorer 11 Win Type - Total 54 Types 14/1/15/2/12/0/4/1/0/5 Lore% 47 Gallery% 48 Achievement% 67 Wizard Run 0 Options --------- Layout 0 ASCII 0 Keyboard 0 Movement Numpad Keybinds 0 Fullscreen 2 Font 12/Smallcaps Map View 83x54 Zoom Use 0% Tactical HUD 0 Map Filters NONE Filters NONE Steam X RUN: 51eba0f3-d1bb-4194-89c1-367ae69b0085